fUST/lending_fUST_20240727
["ID","MTS","AMOUNT","RATE_DAILY","PERIOD"]
[333387410,1722092882327,261.09898694,9.9e-05,2]
[333387414,1722092950511,-300.0,0.00011692,2]
[333387415,1722092950535,-12.78513953,0.00011693,2]
[333387416,1722092979997,319.40039305,9.999e-05,2]
[333387473,1722093032279,-300.0,0.00011692,2]
[333387474,1722093032289,-9430.89567384,0.00011693,2]
[333387504,1722093038389,-366.99479238,0.00011693,2]
[333387505,1722093038403,-3418.95412238,0.00011693,2]
[333387506,1722093038415,-265.00443593,0.00011693,2]
[333387517,1722093040584,-4695.7766252,0.00011693,2]
[333387653,1722093046415,-5610.91668836,0.00011693,2]
[333387654,1722093046427,-168.534401,0.00011734,2]
[333387655,1722093046437,-250.0,0.00011931,2]
[333387656,1722093046447,-853.44891065,0.00012,2]
[333387664,1722093410655,154.66746495,9.999e-05,2]
[333387666,1722093413147,154.66746495,9.999e-05,2]
[333387674,1722093957124,-250.0,0.00010867,2]
[333387675,1722093957148,-250.0,0.00010879,2]
[333387676,1722093957172,-250.0,0.00010909,2]
[333387677,1722093957197,-132.28077556,0.00010939,2]
[333387685,1722094027094,-117.71922444,0.00010939,2]
[333387686,1722094027117,-169.468268,0.00010959,2]
[333387687,1722094027141,-250.0,0.00010969,2]
[333387688,1722094027164,-9.55923218,0.00010998,2]
[333387691,1722094039101,-240.44076782,0.00010998,2]
[333387692,1722094039125,-250.0,0.00011028,2]
[333387693,1722094039148,-250.0,0.00011058,2]
[333387694,1722094039172,-250.0,0.00011088,2]
[333387695,1722094039196,-107.74941218,0.00011118,2]
[333387696,1722094041350,-142.25058782,0.00011118,2]
[333387697,1722094041374,-250.0,0.00011148,2]
[333387698,1722094041396,-250.0,0.00011177,2]
[333387699,1722094041419,-231.12549478,0.00011207,2]
[333387742,1722094148101,-300.0,0.00010431,2]
[333387743,1722094148130,-24858.8883848,0.00010432,2]
[333387796,1722094232574,-41.1116152,0.00010432,2]
[333387798,1722094232584,-18.87450522,0.00011207,2]
[333387800,1722094232594,-250.0,0.00011237,2]
[333387802,1722094232603,-250.0,0.00011267,2]
[333387805,1722094232615,-250.0,0.00011297,2]
[333387807,1722094232624,-250.0,0.00011327,2]
[333387809,1722094232634,-250.0,0.00011356,2]
[333387812,1722094232653,-250.0,0.00011386,2]
[333387814,1722094232668,-250.0,0.00011416,2]
[333387816,1722094232678,-250.0,0.00011446,2]
[333387818,1722094232688,-367.57032676,0.00011542,2]
[333387821,1722094232699,-5308.13158001,0.00011758,2]
[333387823,1722094232708,-419.24097497,0.000119,2]
[333387825,1722094232721,-191.47619051,0.000119,2]
[333387827,1722094232732,-300.0,0.00011999,2]
[333387829,1722094232742,-300.0,0.00011999,2]
[333387831,1722094232752,-1153.66388033,0.00012,2]
[333387834,1722094232770,-909.30533274,0.00012,2]
[333387875,1722094238585,-3566.23564299,0.00012,2]
[333387877,1722094238595,-177.52653269,0.00012119,2]
[333387879,1722094238608,-413.4893308,0.00012178,2]
[333387881,1722094238620,-169.468268,0.00012241,2]
[333387883,1722094238630,-153.0,0.00012301,2]
[333387886,1722094238640,-294.0187007,0.00012301,2]
[333387888,1722094238650,-294.0187007,0.00012301,2]
[333387890,1722094238662,-523.4482053,0.00012478,2]
[333387892,1722094238672,-320.1479513,0.00012478,2]
[333387894,1722094238684,-153.0,0.00012493,2]
[333387896,1722094238693,-153.0,0.00012493,2]
[333387898,1722094238703,-153.0,0.00012493,2]
[333387900,1722094238712,-153.0,0.00012493,2]
[333387902,1722094238724,-3467.4041097,0.000125,2]
[333387904,1722094238733,-44008.81247031,0.00012645,2]
[333387906,1722094238745,-9513.00000003,0.00012645,2]
[333387940,1722094240687,-43962.1595286,0.00012645,2]
[333387941,1722094240698,-157.57293277,0.00012899,2]
[333387942,1722094240707,-163.50215421,0.00013,2]
[333387943,1722094240717,-300.0,0.00013172,2]
[333387944,1722094240730,-420.0,0.00013199,2]
[333387945,1722094240740,-872.3719274,0.00013306,2]
[333387946,1722094240750,-206.7714858,0.00013315,2]
[333387947,1722094240760,-206.7714858,0.00013315,2]
[333387948,1722094240770,-153.0,0.00013315,2]
[333387949,1722094240779,-153.0,0.00013315,2]
[333387950,1722094240789,-153.0,0.00013315,2]
[333387951,1722094240799,-153.0,0.00013315,2]
[333387952,1722094240814,-206.7714858,0.00013315,2]
[333387953,1722094240824,-153.0,0.00013315,2]
[333387954,1722094240833,-153.0,0.00013315,2]
[333387955,1722094240843,-441.7258208,0.00013315,2]
[333387956,1722094240854,-153.0,0.00013315,2]
[333387957,1722094240863,-153.0,0.00013315,2]
[333387958,1722094240874,-153.0,0.00013315,2]
[333387959,1722094240884,-153.0,0.00013315,2]
[333387960,1722094240894,-153.0,0.00013315,2]
[333387961,1722094240904,-153.0,0.00013315,2]
[333387962,1722094240913,-153.0,0.00013315,2]
[333387963,1722094240923,-153.0,0.00013315,2]
[333387964,1722094240933,-2660.46595669,0.00013399,2]
[333387965,1722094240943,-540.26064191,0.000134,2]
[333387966,1722094240952,-158.076956,0.00013425,2]
[333387967,1722094240961,-294.0187007,0.00013425,2]
[333387968,1722094240972,-294.0187007,0.00013425,2]
[333387969,1722094240981,-294.0187007,0.00013425,2]
[333387970,1722094240991,-294.0187007,0.00013425,2]
[333387971,1722094241001,-540.2606419,0.0001345,2]
[333387972,1722094241012,-15588.51500984,0.0001348,2]
[333387973,1722094241177,-540.2606419,0.00013499,2]
[333387974,1722094241187,-832.41387892,0.000135,5]
[333387975,1722094241197,-15811.1374938,0.000135,2]
[333388002,1722094243453,-192140.67723271,0.000135,2]
[333388004,1722094243464,-150.112233,0.000135,2]
[333388006,1722094243474,-150.112233,0.000135,2]
[333388008,1722094243485,-150.112233,0.000135,2]
[333388010,1722094243496,-7890.06790377,0.000135,2]
[333388012,1722094243506,-540.2606419,0.00013549,2]
[333388014,1722094243516,-457.6220723,0.00013561,2]
[333388016,1722094243526,-540.2606419,0.00013598,2]
[333388018,1722094243536,-2044.48914924,0.00013598,2]
[333388020,1722094243546,-2779.13436246,0.00013598,2]
[333388022,1722094243555,-2000.0,0.00013598,2]
[333388024,1722094243565,-150.112233,0.000136,2]
[333388027,1722094243575,-155.0,0.0001367,2]
[333388029,1722094243584,-25018.22490665,0.00013698,5]
[333388031,1722094243594,-500.0,0.00013698,2]
[333388033,1722094243604,-500.0,0.00013698,2]
[333388035,1722094243613,-500.0,0.00013698,2]
[333388037,1722094243624,-500.0,0.00013698,2]
[333388039,1722094243634,-500.0,0.00013698,2]
[333388041,1722094243644,-500.0,0.00013698,2]
[333388043,1722094243656,-500.0,0.00013698,2]
[333388045,1722094243667,-500.0,0.00013698,2]
[333388047,1722094243678,-500.0,0.00013698,2]
[333388049,1722094243689,-500.0,0.00013698,2]
[333388051,1722094243699,-500.0,0.00013698,2]
[333388055,1722094243712,-500.0,0.00013698,2]
[333388057,1722094243724,-500.73561425,0.00013698,2]
[333388059,1722094243737,-500.0,0.00013698,2]
[333388061,1722094243749,-500.0,0.00013698,2]
[333388063,1722094243759,-500.0,0.00013698,2]
[333388065,1722094243771,-500.0,0.00013698,2]
[333388067,1722094243781,-500.0,0.00013698,2]
[333388069,1722094243790,-500.0,0.00013698,2]
[333388071,1722094243800,-500.0,0.00013698,2]
[333388073,1722094243812,-500.0,0.00013698,2]
[333388075,1722094243821,-500.0,0.00013698,2]
[333388077,1722094243831,-500.0,0.00013698,2]
[333388079,1722094243840,-500.0,0.00013698,2]
[333388081,1722094243853,-500.0,0.00013698,2]
[333388083,1722094243863,-500.0,0.00013698,2]
[333388085,1722094243873,-500.0,0.00013698,2]
[333388087,1722094243883,-500.0,0.00013698,2]
[333388089,1722094243895,-500.0,0.00013698,2]
[333388091,1722094243905,-500.0,0.00013698,2]
[333388093,1722094243914,-500.0,0.00013698,2]
[333388096,1722094243925,-500.0,0.00013698,2]
[333388098,1722094243934,-500.0,0.00013698,2]
[333388100,1722094243944,-500.0,0.00013698,2]
[333388102,1722094243953,-279.1907336,0.00013698,2]
[333388104,1722094243963,-2526.16,0.00013698,2]
[333388106,1722094243974,-2526.16,0.00013698,2]
[333388108,1722094243984,-2526.16,0.00013698,2]
[333388110,1722094243994,-2526.16,0.00013698,2]
[333388112,1722094244004,-2526.16,0.00013698,2]
[333388114,1722094244013,-2526.16,0.00013698,2]
[333388116,1722094244022,-2526.16,0.00013698,2]
[333388117,1722094244031,-2526.16,0.00013698,2]
[333388120,1722094244042,-2526.16,0.00013698,2]
[333388121,1722094244051,-2526.16,0.00013698,2]
[333388123,1722094244060,-2526.16,0.00013698,2]
[333388125,1722094244070,-2526.16,0.00013698,2]
[333388128,1722094244081,-2526.16,0.00013698,2]
[333388130,1722094244090,-2526.16,0.00013698,2]
[333388132,1722094244100,-2526.16,0.00013698,2]
[333388134,1722094244109,-2526.16,0.00013698,2]
[333388136,1722094244118,-2526.16,0.00013698,2]
[333388138,1722094244127,-2526.16,0.00013698,2]
[333388140,1722094244137,-2526.16,0.00013698,2]
[333388142,1722094244147,-2526.16,0.00013698,2]
[333388144,1722094244156,-2526.16,0.00013698,2]
[333388146,1722094244165,-2526.16,0.00013698,2]
[333388148,1722094244175,-2526.16,0.00013698,2]
[333388150,1722094244184,-2526.38738764,0.00013698,2]
[333388152,1722094244194,-500.0,0.00013698,2]
[333388154,1722094244203,-500.0,0.00013698,2]
[333388156,1722094244213,-500.22635326,0.00013698,2]
[333388158,1722094244226,-500.0,0.00013698,2]
[333388160,1722094244235,-501.62715217,0.00013698,2]
[333388162,1722094244245,-500.0,0.00013698,2]
[333388164,1722094244254,-501.99856816,0.00013698,2]
[333388166,1722094244263,-500.0,0.00013698,2]
[333388168,1722094244273,-500.0,0.00013698,2]
[333388170,1722094244282,-500.0,0.00013698,2]
[333388172,1722094244292,-500.0,0.00013698,2]
[333388174,1722094244301,-500.0,0.00013698,2]
[333388176,1722094244310,-500.0,0.00013698,2]
[333388178,1722094244320,-500.0,0.00013698,2]
[333388180,1722094244329,-500.0,0.00013698,2]
[333388182,1722094244338,-500.0,0.00013698,2]
[333388184,1722094244348,-500.0,0.00013698,2]
[333388186,1722094244358,-500.0,0.00013698,2]
[333388188,1722094244367,-500.0,0.00013698,2]
[333388190,1722094244377,-500.0,0.00013698,2]
[333388192,1722094244387,-500.0,0.00013698,2]
[333388194,1722094244397,-500.0,0.00013698,2]
[333388196,1722094244406,-500.0,0.00013698,2]
[333388198,1722094244415,-500.0,0.00013698,2]
[333388200,1722094244425,-500.0,0.00013698,2]
[333388202,1722094244434,-151.0,0.00013698,2]
[333388204,1722094244444,-151.0,0.00013698,2]
[333388206,1722094244453,-151.0,0.00013698,2]
[333388208,1722094244463,-501.20994446,0.00013698,2]
[333388210,1722094244475,-500.0,0.00013698,2]
[333388212,1722094244486,-500.90753046,0.00013698,2]
[333388214,1722094244495,-500.0,0.00013698,2]
[333388216,1722094244505,-500.0,0.00013698,2]
[333388218,1722094244515,-500.0,0.00013698,2]
[333388220,1722094244524,-151.0,0.00013698,2]
[333388222,1722094244534,-151.0,0.00013698,2]
[333388224,1722094244543,-503.79320357,0.00013698,2]
[333388226,1722094244553,-500.0,0.00013698,2]
[333388228,1722094244562,-500.0,0.00013698,2]
[333388230,1722094244572,-500.0,0.00013698,2]
[333388233,1722094244581,-500.0,0.00013698,2]
[333388235,1722094244591,-500.0,0.00013698,2]
[333388237,1722094244601,-151.0,0.00013698,2]
[333388239,1722094244610,-151.0,0.00013698,2]
[333388241,1722094244619,-419.96502977,0.00013698,2]
[333388243,1722094244628,-151.0,0.00013698,2]
[333388245,1722094244638,-150.0,0.00013698,2]
[333388247,1722094244647,-151.0,0.00013698,2]
[333388249,1722094244657,-151.0,0.00013698,2]
[333388251,1722094244666,-151.0,0.00013698,2]
[333388253,1722094244675,-500.0,0.00013698,2]
[333388255,1722094244684,-500.0,0.00013698,2]
[333388257,1722094244694,-500.0,0.00013698,2]
[333388259,1722094244703,-500.0,0.00013698,2]
[333388261,1722094244712,-500.0,0.00013698,2]
[333388263,1722094244725,-500.0,0.00013698,2]
[333388265,1722094244734,-500.0,0.00013698,2]
[333388267,1722094244743,-500.0,0.00013698,2]
[333388269,1722094244752,-500.0,0.00013698,2]
[333388271,1722094244761,-500.0,0.00013698,2]
[333388273,1722094244770,-500.0,0.00013698,2]
[333388275,1722094244780,-500.0,0.00013698,2]
[333388277,1722094244789,-151.0,0.00013698,2]
[333388279,1722094244798,-151.0,0.00013698,2]
[333388281,1722094244811,-500.0,0.00013698,2]
[333388283,1722094244820,-151.0,0.00013698,2]
[333388285,1722094244829,-500.0,0.00013698,2]
[333388287,1722094244838,-500.0,0.00013698,2]
[333388289,1722094244849,-500.73041792,0.00013698,2]
[333388291,1722094244859,-500.0,0.00013698,2]
[333388293,1722094244868,-500.0,0.00013698,2]
[333388295,1722094244877,-230.56124379,0.00013698,2]
[333388297,1722094244889,-500.0,0.00013698,2]
[333388299,1722094244899,-501.59095229,0.00013698,2]
[333388301,1722094244909,-500.0,0.00013698,2]
[333388303,1722094244919,-500.0,0.00013698,2]
[333388305,1722094244928,-500.0,0.00013698,2]
[333388307,1722094244938,-723.48,0.00013698,2]
[333388309,1722094244947,-500.0,0.00013698,2]
[333388311,1722094244956,-500.0,0.00013698,2]
[333388313,1722094244966,-501.469138,0.00013698,2]
[333388315,1722094244980,-500.0,0.00013698,2]
[333388317,1722094244989,-500.0,0.00013698,2]
[333388319,1722094244999,-500.0,0.00013698,2]
[333388321,1722094245008,-500.0,0.00013698,2]
[333388323,1722094245017,-500.0,0.00013698,2]
[333388325,1722094245026,-500.0,0.00013698,2]
[333388327,1722094245036,-500.0,0.00013698,2]
[333388329,1722094245045,-500.0,0.00013698,2]
[333388332,1722094245055,-500.0,0.00013698,2]
[333388334,1722094245064,-500.0,0.00013698,2]
[333388336,1722094245073,-500.0,0.00013698,2]
[333388338,1722094245083,-500.0,0.00013698,2]
[333388339,1722094245092,-500.0,0.00013698,2]
[333388341,1722094245102,-500.0,0.00013698,2]
[333388344,1722094245112,-500.0,0.00013698,2]
[333388346,1722094245121,-500.0,0.00013698,2]
[333388348,1722094245131,-151.0,0.00013698,2]
[333388350,1722094245140,-500.0,0.00013698,2]
[333388352,1722094245150,-500.0,0.00013698,2]
[333388354,1722094245159,-151.0,0.00013698,2]
[333388356,1722094245168,-500.0,0.00013698,2]
[333388358,1722094245178,-233.25117,0.00013698,2]
[333388360,1722094245187,-500.0,0.00013698,2]
[333388362,1722094245197,-233.25117,0.00013698,2]
[333388363,1722094245207,-502.02012757,0.00013698,2]
[333388365,1722094245216,-500.0,0.00013698,2]
[333388367,1722094245228,-151.0,0.00013698,2]
[333388369,1722094245238,-535.9321805,0.00013698,2]
[333388371,1722094245248,-151.0,0.00013698,2]
[333388373,1722094245259,-500.0,0.00013698,2]
[333388375,1722094245268,-500.0,0.00013698,2]
[333388377,1722094245278,-500.0,0.00013698,2]
[333388380,1722094245290,-885.11,0.00013698,2]
[333388382,1722094245300,-151.0,0.00013698,2]
[333388384,1722094245310,-646.47,0.00013698,2]
[333388386,1722094245320,-500.0,0.00013698,2]
[333388388,1722094245331,-500.0,0.00013698,2]
[333388390,1722094245342,-507.16919398,0.00013698,2]
[333388392,1722094245352,-500.0,0.00013698,2]
[333388395,1722094245363,-500.0,0.00013698,2]
[333388397,1722094245373,-500.0,0.00013698,2]
[333388399,1722094245382,-500.0,0.00013698,2]
[333388401,1722094245391,-500.0,0.00013698,2]
[333388402,1722094245400,-500.0,0.00013698,2]
[333388404,1722094245410,-500.0,0.00013698,2]
[333388406,1722094245420,-500.0,0.00013698,2]
[333388408,1722094245430,-151.0,0.00013698,2]
[333388410,1722094245439,-500.0,0.00013698,2]
[333388412,1722094245448,-500.0,0.00013698,2]
[333388415,1722094245458,-151.0,0.00013698,2]
[333388417,1722094245467,-500.0,0.00013698,2]
[333388418,1722094245478,-500.0,0.00013698,2]
[333388420,1722094245487,-151.0,0.00013698,2]
[333388422,1722094245497,-500.0,0.00013698,2]
[333388425,1722094245507,-500.0,0.00013698,2]
[333388427,1722094245516,-500.0,0.00013698,2]
[333388429,1722094245525,-500.0,0.00013698,2]
[333388431,1722094245535,-500.0,0.00013698,2]
[333388432,1722094245544,-500.0,0.00013698,2]
[333388434,1722094245554,-500.0,0.00013698,2]
[333388437,1722094245563,-151.0,0.00013698,2]
[333388439,1722094245573,-500.0,0.00013698,2]
[333388441,1722094245586,-500.0,0.00013698,2]
[333388443,1722094245595,-500.0,0.00013698,2]
[333388445,1722094245604,-500.0,0.00013698,2]
[333388447,1722094245614,-500.0,0.00013698,2]
[333388449,1722094245624,-500.0,0.00013698,2]
[333388451,1722094245634,-500.0,0.00013698,2]
[333388453,1722094245644,-550.83,0.00013698,2]
[333388455,1722094245653,-570.3779384,0.00013698,2]
[333388457,1722094245664,-500.0,0.00013698,2]
[333388459,1722094245673,-500.0,0.00013698,2]
[333388461,1722094245684,-500.0,0.00013698,2]
[333388463,1722094245693,-500.0,0.00013698,2]
[333388465,1722094245703,-500.0,0.00013698,2]
[333388467,1722094245712,-500.0,0.00013698,2]
[333388469,1722094245724,-500.0,0.00013698,2]
[333388471,1722094245733,-500.0,0.00013698,2]
[333388473,1722094245742,-500.0,0.00013698,2]
[333388475,1722094245751,-500.0,0.00013698,2]
[333388477,1722094245762,-500.0,0.00013698,2]
[333388479,1722094245771,-500.0,0.00013698,2]
[333388482,1722094245782,-500.0,0.00013698,2]
[333388484,1722094245793,-649.24,0.00013698,2]
[333388486,1722094245808,-151.0,0.00013698,2]
[333388488,1722094245818,-500.0,0.00013698,2]
[333388490,1722094245828,-500.0,0.00013698,2]
[333388492,1722094245840,-505.28560833,0.00013698,2]
[333388494,1722094245852,-500.0,0.00013698,2]
[333388497,1722094245863,-500.0,0.00013698,2]
[333388498,1722094245872,-500.0,0.00013698,2]
[333388500,1722094245883,-661.68,0.00013698,2]
[333388502,1722094245894,-500.0,0.00013698,2]
[333388504,1722094245904,-500.0,0.00013698,2]
[333388507,1722094245914,-630.905205,0.00013698,2]
[333388509,1722094245924,-151.0,0.00013698,2]
[333388510,1722094245933,-630.905205,0.00013698,2]
[333388512,1722094245943,-519.33,0.00013698,2]
[333388514,1722094245953,-500.0,0.00013698,2]
[333388516,1722094245962,-500.0,0.00013698,2]
[333388520,1722094245971,-500.0,0.00013698,2]
[333388522,1722094245983,-500.0,0.00013698,2]
[333388524,1722094245992,-151.0,0.00013698,2]
[333388526,1722094246002,-500.0,0.00013698,2]
[333388528,1722094246011,-151.0,0.00013698,2]
[333388531,1722094246020,-151.0,0.00013698,2]
[333388534,1722094246030,-500.0,0.00013698,2]
[333388537,1722094246040,-500.0,0.00013698,2]
[333388540,1722094246050,-500.0,0.00013698,2]
[333388543,1722094246060,-793.18,0.00013698,2]
[333388546,1722094246069,-500.0,0.00013698,2]
[333388548,1722094246079,-500.0,0.00013698,2]
[333388550,1722094246089,-500.0,0.00013698,2]
[333388552,1722094246098,-500.0,0.00013698,2]
[333388554,1722094246109,-151.0,0.00013698,2]
[333388557,1722094246118,-151.0,0.00013698,2]
[333388558,1722094246128,-228.20082559,0.00013698,2]
[333388559,1722094246138,-500.0,0.00013698,2]
[333388560,1722094246148,-151.0,0.00013698,2]
[333388561,1722094246158,-151.0,0.00013698,2]
[333388562,1722094246167,-400.9825435,0.00013698,2]
[333388563,1722094246176,-500.0,0.00013698,2]
[333388564,1722094246186,-500.0,0.00013698,2]
[333388565,1722094246196,-500.0,0.00013698,2]
[333388566,1722094246206,-367.2449111,0.00013698,2]
[333388567,1722094246215,-500.0,0.00013698,2]
[333388568,1722094246226,-500.0,0.00013698,2]
[333388569,1722094246237,-500.0,0.00013698,2]
[333388570,1722094246247,-500.0,0.00013698,2]
[333388572,1722094246256,-500.0,0.00013698,2]
[333388574,1722094246265,-500.0,0.00013698,2]
[333388576,1722094246275,-151.0,0.00013698,2]
[333388578,1722094246284,-151.0,0.00013698,2]
[333388579,1722094246295,-1409.096304,0.00013698,2]
[333388581,1722094246304,-500.0,0.00013698,2]
[333388583,1722094246314,-1409.096304,0.00013698,2]
[333388585,1722094246324,-577.62,0.00013698,2]
[333388587,1722094246334,-1409.096304,0.00013698,2]
[333388589,1722094246343,-500.0,0.00013698,2]
[333388591,1722094246353,-151.0,0.00013698,2]
[333388593,1722094246364,-241.786727,0.00013698,2]
[333388595,1722094246375,-1733.65,0.00013698,2]
[333388598,1722094246387,-151.0,0.00013698,2]
[333388600,1722094246397,-151.0,0.00013698,2]
[333388602,1722094246407,-151.0,0.00013698,2]
[333388604,1722094246419,-151.0,0.00013698,2]
[333388606,1722094246429,-151.0,0.00013698,2]
[333388608,1722094246439,-151.0,0.00013698,2]
[333388610,1722094246448,-151.0,0.00013698,2]
[333388612,1722094246458,-151.0,0.00013698,2]
[333388614,1722094246469,-151.0,0.00013698,2]
[333388616,1722094246480,-151.0,0.00013698,2]
[333388618,1722094246489,-1139.68,0.00013698,2]
[333388620,1722094246499,-839.87,0.00013698,2]
[333388622,1722094246509,-171.561649,0.00013698,2]
[333388624,1722094246519,-2083.538218,0.00013698,2]
[333388626,1722094246529,-2083.538218,0.00013698,2]
[333388629,1722094246539,-2083.538218,0.00013698,2]
[333388631,1722094246549,-2083.538218,0.00013698,2]
[333388632,1722094246558,-726.76,0.00013698,2]
[333388648,1722094246695,-1412.76,0.00013698,2]
[333388650,1722094246706,-151.0,0.00013698,2]
[333388652,1722094246716,-701.6,0.00013698,2]
[333388654,1722094246728,-151.0,0.00013698,2]
[333388656,1722094246739,-500.0,0.00013698,2]
[333388658,1722094246750,-500.0,0.00013698,2]
[333388660,1722094246759,-151.0,0.00013698,2]
[333388662,1722094246769,-151.0,0.00013698,2]
[333388664,1722094246779,-1131.59,0.00013698,2]
[333388666,1722094246788,-151.0,0.00013698,2]
[333388668,1722094246798,-151.0,0.00013698,2]
[333388670,1722094246811,-500.0,0.00013698,2]
[333388672,1722094246826,-553.28,0.00013698,2]
[333388674,1722094246837,-500.0,0.00013698,2]
[333388677,1722094246850,-500.0,0.00013698,2]
[333388679,1722094246861,-3228.82,0.00013698,2]
[333388680,1722094246872,-500.0,0.00013698,2]
[333388682,1722094246885,-500.0,0.00013698,2]
[333388684,1722094246895,-500.0,0.00013698,2]
[333388686,1722094246904,-500.0,0.00013698,2]
[333388688,1722094246914,-389.00625085,0.00013698,2]
[333388690,1722094246924,-500.0,0.00013698,2]
[333388692,1722094246934,-500.0,0.00013698,2]
[333388694,1722094246944,-6122.99,0.00013698,2]
[333388696,1722094246953,-500.0,0.00013698,2]
[333388698,1722094246963,-500.0,0.00013698,2]
[333388700,1722094246972,-500.0,0.00013698,2]
[333388702,1722094246987,-500.0,0.00013698,2]
[333388704,1722094246996,-500.0,0.00013698,2]
[333388706,1722094247005,-500.0,0.00013698,2]
[333388708,1722094247015,-500.0,0.00013698,2]
[333388710,1722094247024,-2595.92,0.00013698,2]
[333388712,1722094247034,-404.421187,0.00013698,2]
[333388714,1722094247044,-853.94,0.00013698,2]
[333388716,1722094247054,-404.421187,0.00013698,2]
[333388718,1722094247063,-500.0,0.00013698,2]
[333388720,1722094247072,-404.421187,0.00013698,2]
[333388722,1722094247082,-500.0,0.00013698,2]
[333388724,1722094247092,-500.0,0.00013698,2]
[333388726,1722094247102,-404.421187,0.00013698,2]
[333388728,1722094247112,-500.0,0.00013698,2]
[333388730,1722094247121,-404.421187,0.00013698,2]
[333388732,1722094247131,-500.0,0.00013698,2]
[333388734,1722094247140,-404.421187,0.00013698,2]
[333388736,1722094247149,-500.0,0.00013698,2]
[333388738,1722094247159,-500.0,0.00013698,2]
[333388740,1722094247170,-578.85,0.00013698,2]
[333388742,1722094247179,-1123.26,0.00013698,2]
[333388744,1722094247189,-1761.04,0.00013698,2]
[333388746,1722094247198,-500.0,0.00013698,2]
[333388748,1722094247208,-584.76,0.00013698,2]
[333388750,1722094247217,-151.0,0.00013698,2]
[333388752,1722094247228,-500.0,0.00013698,2]
[333388754,1722094247238,-500.0,0.00013698,2]
[333388756,1722094247248,-500.0,0.00013698,2]
[333388758,1722094247257,-635.49,0.00013698,2]
[333388761,1722094247267,-220.70281175,0.00013698,2]
[333388763,1722094247277,-266.312252,0.00013698,2]
[333388764,1722094247286,-266.312252,0.00013698,2]
[333388767,1722094247296,-266.312252,0.00013698,2]
[333388769,1722094247305,-500.0,0.00013698,2]
[333388771,1722094247315,-266.312252,0.00013698,2]
[333388773,1722094247325,-500.0,0.00013698,2]
[333388775,1722094247335,-266.312252,0.00013698,2]
[333388776,1722094247344,-266.312252,0.00013698,2]
[333388779,1722094247355,-500.0,0.00013698,2]
[333388780,1722094247364,-500.0,0.00013698,2]
[333388782,1722094247373,-402.208237,0.00013698,2]
[333388784,1722094247383,-402.208237,0.00013698,2]
[333388787,1722094247393,-708.65,0.00013698,2]
[333388789,1722094247403,-402.208237,0.00013698,2]
[333388791,1722094247413,-151.0,0.00013698,2]
[333388793,1722094247422,-500.0,0.00013698,2]
[333388795,1722094247432,-506.42149932,0.00013698,2]
[333388797,1722094247442,-151.0,0.00013698,2]
[333388799,1722094247452,-293.215157,0.00013698,2]
[333388801,1722094247462,-500.0,0.00013698,2]
[333388803,1722094247472,-402.208237,0.00013698,2]
[333388805,1722094247484,-402.208237,0.00013698,2]
[333388807,1722094247493,-402.208237,0.00013698,2]
[333388809,1722094247504,-1101.26,0.00013698,2]